fUST/lending_fUST_20240116
["ID","MTS","AMOUNT","RATE_DAILY","PERIOD"]
[311703654,1705342242884,-500.0,0.00030136,2]
[311703655,1705342242894,-518.8752353,0.00030136,2]
[311703656,1705342242903,-638.02,0.00030136,2]
[311703657,1705342242912,-508.07283932,0.00030136,2]
[311703658,1705342242922,-500.0,0.00030136,2]
[311703659,1705342242931,-501.46367513,0.00030136,2]
[311703660,1705342242940,-373.6481171,0.00030136,2]
[311703661,1705342242950,-505.46016251,0.00030136,2]
[311703662,1705342242960,-500.0,0.00030136,2]
[311703663,1705342242969,-995.08,0.00030136,2]
[311703664,1705342242979,-153.0,0.00030137,2]
[311703665,1705342242991,-153.0,0.00030137,2]
[311703666,1705342243007,-153.0,0.00030137,2]
[311703667,1705342243016,-153.0,0.00030137,2]
[311703668,1705342243026,-153.0,0.00030137,2]
[311703669,1705342243035,-1000.0,0.00030245,7]
[311703670,1705342243044,-223.29363884,0.00030245,2]
[311703671,1705342243066,-500.0,0.00030273,2]
[311703672,1705342243077,-794.70585194,0.00030308,4]
[311703673,1705342243086,-226.3364049,0.00030309,4]
[311703674,1705342243096,-5579.51870927,0.00030309,4]
[311703675,1705342243105,-678.12557023,0.00030373,2]
[311703676,1705342243114,-2000.0,0.000304,2]
[311703677,1705342243124,-151.0,0.00030408,2]
[311703678,1705342243133,-151.0,0.00030408,2]
[311703679,1705342243142,-930.339634,0.00030408,2]
[311703680,1705342243152,-930.339634,0.00030408,2]
[311703681,1705342243161,-736.97874132,0.00030409,4]
[311703682,1705342243170,-440.47017666,0.00030409,2]
[311703683,1705342243179,-922.11413511,0.00030409,2]
[311703684,1705342243189,-500.0,0.00030409,2]
[311703685,1705342243198,-500.0,0.00030409,2]
[311703686,1705342243207,-500.0,0.00030409,2]
[311703687,1705342243216,-922.11413511,0.00030409,2]
[311703688,1705342243225,-500.0,0.00030409,2]
[311703689,1705342243234,-213.00226987,0.00030409,2]
[311703690,1705342243244,-922.11413511,0.00030409,2]
[311703691,1705342243253,-500.0,0.00030409,2]
[311703692,1705342243262,-500.0,0.00030409,2]
[311703693,1705342243271,-395.68164261,0.00030409,2]
[311703694,1705342243281,-922.11413511,0.00030409,2]
[311703695,1705342243290,-500.0,0.00030409,2]
[311703696,1705342243300,-500.0,0.00030409,2]
[311703697,1705342243309,-922.11413511,0.00030409,2]
[311703698,1705342243318,-366.03692342,0.00030409,2]
[311703699,1705342243327,-922.11413511,0.00030409,2]
[311703700,1705342243336,-500.0,0.00030409,2]
[311703701,1705342243346,-500.83376542,0.00030409,2]
[311703702,1705342243355,-922.11413511,0.00030409,2]
[311703703,1705342243365,-500.0,0.00030409,2]
[311703704,1705342243374,-922.11413511,0.00030409,2]
[311703705,1705342243383,-922.11413511,0.00030409,2]
[311703706,1705342243392,-500.0,0.00030409,2]
[311703707,1705342243401,-922.11413511,0.00030409,2]
[311703708,1705342243410,-500.0,0.00030409,2]
[311703709,1705342243419,-922.11413511,0.00030409,2]
[311703710,1705342243428,-500.0,0.00030409,2]
[311703711,1705342243438,-922.11413511,0.00030409,2]
[311703712,1705342243447,-922.11413511,0.00030409,2]
[311703715,1705342243456,-500.0,0.00030409,2]
[311703717,1705342243537,-922.11413511,0.00030409,2]
[311703718,1705342243546,-500.0,0.00030409,2]
[311703719,1705342243555,-922.11413511,0.00030409,2]
[311703720,1705342243564,-500.0,0.00030409,2]
[311703721,1705342243574,-500.0,0.00030409,2]
[311703722,1705342243583,-922.11413511,0.00030409,2]
[311703723,1705342243591,-500.0,0.00030409,2]
[311703724,1705342243601,-922.11413511,0.00030409,2]
[311703725,1705342243610,-922.11413511,0.00030409,2]
[311703726,1705342243619,-500.0,0.00030409,2]
[311703727,1705342243628,-500.0,0.00030409,2]
[311703728,1705342243637,-922.11413511,0.00030409,2]
[311703729,1705342243646,-922.11413511,0.00030409,2]
[311703730,1705342243655,-500.0,0.00030409,2]
[311703731,1705342243665,-922.11413511,0.00030409,2]
[311703732,1705342243673,-922.11413511,0.00030409,2]
[311703733,1705342243683,-922.11413511,0.00030409,2]
[311703734,1705342243692,-922.11413511,0.00030409,2]
[311703735,1705342243701,-922.11413511,0.00030409,2]
[311703736,1705342243710,-922.11413511,0.00030409,2]
[311703737,1705342243719,-922.11413511,0.00030409,2]
[311703738,1705342243728,-922.11413511,0.00030409,2]
[311703739,1705342243738,-500.0,0.00030409,2]
[311703740,1705342243747,-500.0,0.00030409,2]
[311703741,1705342243756,-922.11413511,0.00030409,2]
[311703742,1705342243765,-922.11413511,0.00030409,2]
[311703743,1705342243774,-500.0,0.00030409,2]
[311703744,1705342243784,-500.0,0.00030409,2]
[311703745,1705342243793,-922.11413511,0.00030409,2]
[311703746,1705342243802,-922.11413511,0.00030409,2]
[311703747,1705342243811,-922.11413511,0.00030409,2]
[311703748,1705342243820,-922.11413511,0.00030409,2]
[311703749,1705342243829,-922.11413511,0.00030409,2]
[311703750,1705342243838,-922.11413511,0.00030409,2]
[311703751,1705342243848,-500.0,0.00030409,2]
[311703752,1705342243857,-300.0,0.00030409,2]
[311703753,1705342243866,-700.80674267,0.00030409,2]
[311703754,1705342243875,-700.80674267,0.00030409,2]
[311703755,1705342243884,-700.80674267,0.00030409,2]
[311703756,1705342243893,-700.80674267,0.00030409,2]
[311703757,1705342243902,-700.80674267,0.00030409,2]
[311703758,1705342243911,-700.80674267,0.00030409,2]
[311703759,1705342243920,-700.80674267,0.00030409,2]
[311703760,1705342243930,-700.80674267,0.00030409,2]
[311703761,1705342243939,-700.80674267,0.00030409,2]
[311703762,1705342243948,-158.44494887,0.00030409,2]
[311703763,1705342243958,-700.80674267,0.00030409,2]
[311703764,1705342243967,-152.57,0.00030409,2]
[311703765,1705342243976,-196.963003,0.00030409,2]
[311703766,1705342243986,-496.66696298,0.0003041,2]
[311703767,1705342243995,-497.72312481,0.0003041,2]
[311703768,1705342244004,-500.0,0.0003041,2]
[311703769,1705342244013,-506.78614687,0.0003041,2]
[311703770,1705342244022,-500.0,0.0003041,2]
[311703771,1705342244031,-500.0,0.0003041,2]
[311703772,1705342244041,-500.0,0.0003041,2]
[311703773,1705342244050,-500.0,0.0003041,2]
[311703774,1705342244058,-433.35458811,0.0003041,2]
[311703775,1705342244068,-500.0,0.0003041,2]
[311703776,1705342244077,-500.0,0.0003041,2]
[311703777,1705342244085,-500.0,0.0003041,2]
[311703778,1705342244095,-150.0,0.0003041,2]
[311703779,1705342244104,-153.67876609,0.0003041,2]
[311703780,1705342244113,-500.0,0.0003041,2]
[311703781,1705342244122,-500.0,0.0003041,2]
[311703782,1705342244131,-610.79,0.0003041,2]
[311703783,1705342244140,-500.0,0.0003041,2]
[311703784,1705342244149,-501.97119656,0.0003041,2]
[311703785,1705342244158,-500.0,0.0003041,2]
[311703786,1705342244167,-507.77,0.0003041,2]
[311703787,1705342244176,-500.0,0.0003041,2]
[311703788,1705342244186,-500.0,0.0003041,2]
[311703789,1705342244195,-618.92361801,0.0003041,2]
[311703790,1705342244204,-500.0,0.0003041,2]
[311703791,1705342244213,-500.0,0.0003041,2]
[311703792,1705342244222,-166.98600418,0.0003041,2]
[311703793,1705342244231,-500.0,0.0003041,2]
[311703794,1705342244240,-503.6558925,0.0003041,2]
[311703795,1705342244249,-991.46,0.0003041,2]
[311703796,1705342244258,-500.0,0.0003041,2]
[311703797,1705342244267,-500.0,0.0003041,2]
[311703798,1705342244276,-500.0,0.0003041,2]
[311703799,1705342244285,-596.45899525,0.0003041,2]
[311703800,1705342244294,-500.0,0.0003041,2]
[311703801,1705342244303,-500.0,0.0003041,2]
[311703802,1705342244312,-1934.91,0.0003041,2]
[311703803,1705342244321,-500.0,0.0003041,2]
[311703804,1705342244330,-500.0,0.0003041,2]
[311703805,1705342244339,-500.0,0.0003041,2]
[311703806,1705342244349,-2000.0,0.0003041,2]
[311703807,1705342244358,-500.0,0.0003041,2]
[311703808,1705342244367,-500.0,0.0003041,2]
[311703809,1705342244376,-500.0,0.0003041,2]
[311703810,1705342244385,-500.0,0.0003041,2]
[311703811,1705342244394,-635.55,0.0003041,2]
[311703812,1705342244403,-1168.27,0.0003041,2]
[311703813,1705342244414,-500.0,0.0003041,2]
[311703814,1705342244423,-500.0,0.0003041,2]
[311703815,1705342244432,-866.83,0.0003041,2]
[311703816,1705342244441,-338.37665592,0.0003041,2]
[311703817,1705342244451,-500.0,0.0003041,2]
[311703818,1705342244461,-500.0,0.0003041,2]
[311703819,1705342244470,-500.0,0.0003041,2]
[311703820,1705342244479,-643.89,0.0003041,2]
[311703821,1705342244488,-500.0,0.0003041,2]
[311703822,1705342244497,-501.54973426,0.0003041,2]
[311703823,1705342244505,-1180.87,0.0003041,2]
[311703824,1705342244514,-500.0,0.0003041,2]
[311703825,1705342244523,-500.0,0.0003041,2]
[311703826,1705342244532,-500.0,0.0003041,2]
[311703827,1705342244541,-506.28699417,0.0003041,2]
[311703828,1705342244550,-500.0,0.0003041,2]
[311703829,1705342244559,-777.05,0.0003041,2]
[311703830,1705342244568,-500.0,0.0003041,2]
[311703831,1705342244587,-500.0,0.0003041,2]
[311703832,1705342244599,-500.0,0.0003041,2]
[311703833,1705342244608,-162.4916908,0.0003041,2]
[311703834,1705342244618,-500.0,0.0003041,2]
[311703835,1705342244629,-502.68498114,0.0003041,2]
[311703836,1705342244639,-500.0,0.0003041,2]
[311703837,1705342244649,-500.0,0.0003041,2]
[311703838,1705342244658,-500.0,0.0003041,2]
[311703839,1705342244668,-662.59,0.0003041,2]
[311703840,1705342244677,-500.0,0.0003041,2]
[311703841,1705342244686,-707.49,0.0003041,2]
[311703842,1705342244696,-500.0,0.0003041,2]
[311703843,1705342244705,-500.0,0.0003041,2]
[311703844,1705342244715,-500.0,0.0003041,2]
[311703845,1705342244725,-500.0,0.0003041,2]
[311703846,1705342244737,-500.0,0.0003041,2]
[311703847,1705342244747,-500.0,0.0003041,2]
[311703848,1705342244756,-500.0,0.0003041,2]
[311703849,1705342244766,-529.53925468,0.0003041,2]
[311703850,1705342244777,-500.0,0.0003041,2]
[311703851,1705342244787,-500.0,0.0003041,2]
[311703852,1705342244796,-799.82,0.0003041,2]
[311703853,1705342244808,-584.31465626,0.0003041,2]
[311703854,1705342244817,-740.73,0.0003041,2]
[311703855,1705342244826,-500.0,0.0003041,2]
[311703856,1705342244836,-666.11,0.0003041,2]
[311703857,1705342244846,-500.0,0.0003041,2]
[311703858,1705342244857,-2386.47,0.0003041,2]
[311703859,1705342244868,-500.0,0.0003041,2]
[311703860,1705342244877,-638.79,0.0003041,2]
[311703861,1705342244887,-403.6744754,0.0003041,2]
[311703862,1705342244896,-1128.27,0.0003041,2]
[311703863,1705342244906,-500.0,0.0003041,2]
[311703864,1705342244916,-643.44,0.0003041,2]
[311703865,1705342244925,-500.0,0.0003041,2]
[311703866,1705342244934,-500.0,0.0003041,2]
[311703867,1705342244944,-2513.68,0.0003041,2]
[311703868,1705342244955,-500.0,0.0003041,2]
[311703869,1705342244964,-500.0,0.0003041,2]
[311703870,1705342244974,-500.0,0.0003041,2]
[311703871,1705342244984,-500.0,0.0003041,2]
[311703872,1705342244993,-501.36504592,0.0003041,2]
[311703873,1705342245002,-2383.03,0.0003041,2]
[311703874,1705342245011,-500.0,0.0003041,2]
[311703875,1705342245021,-615.40630783,0.0003041,2]
[311703876,1705342245031,-500.0,0.0003041,2]
[311703877,1705342245040,-500.0,0.0003041,2]
[311703878,1705342245049,-500.0,0.0003041,2]
[311703879,1705342245059,-500.0,0.0003041,2]
[311703880,1705342245068,-181.0274032,0.0003041,2]
[311703881,1705342245078,-500.0,0.0003041,2]
[311703882,1705342245087,-1277.37,0.0003041,2]
[311703883,1705342245097,-500.0,0.0003041,2]
[311703884,1705342245107,-500.0,0.0003041,2]
[311703885,1705342245117,-500.0,0.0003041,2]
[311703886,1705342245126,-507.22407258,0.0003041,2]
[311703887,1705342245136,-500.0,0.0003041,2]
[311703888,1705342245145,-504.07303375,0.0003041,2]
[311703889,1705342245156,-614.3,0.0003041,2]
[311703890,1705342245165,-500.0,0.0003041,2]
[311703891,1705342245175,-219.91537736,0.0003041,2]
[311703892,1705342245184,-500.0,0.0003041,2]
[311703893,1705342245193,-20310.36,0.0003041,2]
[311703894,1705342245202,-500.0,0.0003041,2]
[311703895,1705342245302,-500.0,0.0003041,2]
[311703896,1705342245312,-500.0,0.0003041,2]
[311703897,1705342245321,-577.4,0.0003041,2]
[311703898,1705342245331,-11705.45,0.0003041,2]
[311703899,1705342245340,-527.88068403,0.0003041,2]
[311703900,1705342245350,-288.11097916,0.0003041,2]
[311703901,1705342245359,-500.0,0.0003041,2]
[311703902,1705342245368,-500.0,0.0003041,2]
[311703903,1705342245377,-500.0,0.0003041,2]
[311703904,1705342245387,-4504.16,0.0003041,2]
[311703905,1705342245396,-500.0,0.0003041,2]
[311703906,1705342245405,-733.36,0.0003041,2]
[311703907,1705342245414,-3289.01,0.0003041,2]
[311703908,1705342245423,-501.79948089,0.0003041,2]
[311703909,1705342245433,-500.0,0.0003041,2]
[311703910,1705342245443,-2177.43,0.0003041,2]
[311703911,1705342245452,-1603.39,0.0003041,2]
[311703912,1705342245461,-507.17422751,0.0003041,2]
[311703913,1705342245470,-500.0,0.0003041,2]
[311703914,1705342245478,-3979.68,0.0003041,2]
[311703915,1705342245487,-500.0,0.0003041,2]
[311703916,1705342245497,-500.0,0.0003041,5]
[311703917,1705342245506,-500.0,0.0003041,2]
[311703918,1705342245515,-947.0,0.0003041,2]
[311703919,1705342245524,-500.0,0.0003041,2]
[311703920,1705342245532,-500.0,0.0003041,2]
[311703921,1705342245541,-834.77,0.0003041,2]
[311703922,1705342245550,-500.0,0.0003041,2]
[311703923,1705342245560,-5176.84,0.0003041,2]
[311703924,1705342245569,-500.0,0.0003041,2]
[311703925,1705342245578,-500.0,0.0003041,2]
[311703926,1705342245587,-1071.51,0.0003041,2]
[311703927,1705342245596,-5532.13,0.0003041,2]
[311703928,1705342245604,-614.64,0.0003041,2]
[311703929,1705342245613,-589.14573616,0.0003041,2]
[311703930,1705342245623,-500.0,0.0003041,2]
[311703931,1705342245632,-509.23456875,0.0003041,2]
[311703932,1705342245640,-638.02,0.0003041,2]
[311703933,1705342245649,-512.24310383,0.0003041,2]
[311703934,1705342245660,-500.0,0.0003041,2]
[311703935,1705342245681,-995.08,0.0003041,2]
[311703936,1705342245692,-151.0,0.0003041,2]
[311703937,1705342245701,-151.0,0.0003041,2]
[311703938,1705342245710,-151.0,0.0003041,2]
[311703939,1705342245721,-151.0,0.0003041,2]
[311703940,1705342245733,-151.0,0.0003041,2]
[311703941,1705342245743,-272.25593409,0.0003041,2]
[311703942,1705342245752,-930.339634,0.0003041,2]
[311703943,1705342245762,-930.339634,0.0003041,2]
[311703944,1705342245771,-930.339634,0.0003041,2]
[311703945,1705342245779,-930.339634,0.0003041,2]
[311703946,1705342245789,-2000.0,0.0003042,2]
[311703947,1705342245798,-2000.0,0.0003043,2]
[311703948,1705342245807,-2000.0,0.0003044,2]
[311703949,1705342245816,-2000.0,0.0003045,2]
[311703950,1705342245825,-2000.0,0.0003046,2]
[311703951,1705342245834,-2000.0,0.0003047,2]
[311703952,1705342245843,-2000.0,0.0003048,2]
[311703953,1705342245854,-3889.942959,0.0003049,2]
[311703954,1705342245864,-500.0,0.00030518,4]
[311703955,1705342245874,-500.0,0.00030547,2]
[311703956,1705342245882,-620.0018751,0.00030561,2]
[311703957,1705342245891,-280.0,0.0003057,15]
[311703958,1705342245900,-5000.0,0.00030572,7]
[311703959,1705342245910,-5000.0,0.00030572,7]
[311703960,1705342245919,-5000.0,0.00030572,7]
[311703961,1705342245928,-5000.0,0.00030572,7]
[311703962,1705342245937,-5000.0,0.00030572,7]
[311703963,1705342245946,-5000.0,0.00030572,7]
[311703964,1705342245956,-5000.0,0.00030572,7]
[311703965,1705342245965,-930.339634,0.00030572,2]
[311703967,1705342245974,-930.339634,0.00030572,2]
[311703969,1705342245983,-151.0,0.00030605,2]
[311703971,1705342245991,-151.0,0.00030605,2]
[311703973,1705342246000,-41866.44263138,0.00030605,5]
[311703974,1705342246009,-500.0,0.00030605,2]
[311703976,1705342246018,-50000.0,0.00030632,5]
[311703978,1705342246027,-930.339634,0.00030632,2]
[311703981,1705342246037,-930.339634,0.00030632,2]
[311703982,1705342246046,-151.0,0.00030656,2]
[311703983,1705342246055,-50000.0,0.00030656,4]
[311703984,1705342246064,-173.0,0.0003066,30]
[311703985,1705342246074,-219.84,0.0003066,30]
[311703986,1705342246083,-4799.0,0.0003066,30]
[311703987,1705342246092,-151.0,0.00030662,2]
[311703988,1705342246103,-151.61,0.00030664,30]
[311703989,1705342246113,-173.0,0.0003067,30]
[311703991,1705342246122,-150.5,0.0003067,30]
[311703993,1705342246131,-4799.0,0.0003067,30]
[311703995,1705342246140,-150.5,0.00030674,30]
[311703997,1705342246149,-173.0,0.0003068,30]
[311703998,1705342246158,-150.5,0.0003068,30]
[311704000,1705342246168,-4799.0,0.0003068,30]
[311704002,1705342246176,-165.51345095,0.00030682,4]
[311704004,1705342246185,-424.0386613,0.00030683,2]
[311704015,1705342246283,-47.83962529,0.00030683,2]
[311704017,1705342246293,-185.9061551,0.00030683,4]
[311704019,1705342246302,-500.0,0.00030683,4]
[311704021,1705342246311,-500.0,0.00030683,4]
[311704023,1705342246320,-413.48084216,0.00030683,4]
[311704025,1705342246329,-500.0,0.00030683,4]
[311704027,1705342246339,-366.27903492,0.00030683,4]
[311704028,1705342246350,-500.0,0.00030683,4]
[311704030,1705342246359,-384.7243927,0.00030683,4]
[311704032,1705342246368,-500.0,0.00030683,4]
[311704034,1705342246378,-500.0,0.00030683,4]
[311704036,1705342246387,-500.0,0.00030683,4]
[311704038,1705342246396,-641.06853813,0.00030683,4]
[311704040,1705342246405,-423.35148576,0.00030683,4]
[311704042,1705342246414,-150.5,0.00030684,30]
[311704044,1705342246423,-500.0,0.00030684,2]
[311704046,1705342246432,-500.0,0.00030684,2]
[311704049,1705342246442,-500.0,0.00030684,2]
[311704050,1705342246451,-500.0,0.00030684,2]
[311704052,1705342246459,-500.0,0.00030684,2]
[311704054,1705342246469,-500.0,0.00030684,2]
[311704055,1705342246478,-500.0,0.00030684,2]
[311704057,1705342246487,-150.0,0.00030684,2]
[311704058,1705342246496,-500.0,0.00030684,2]
[311704059,1705342246505,-500.0,0.00030684,2]
[311704060,1705342246514,-610.79,0.00030684,2]
[311704061,1705342246523,-201.23092565,0.00030684,2]
[311704062,1705342246533,-429.10453152,0.00030684,2]
[311704064,1705342246543,-507.77,0.00030684,2]
[311704065,1705342246552,-337.94887936,0.00030684,2]
[311704066,1705342246565,-162.05112064,0.00030684,2]
[311704067,1705342246575,-500.0,0.00030684,2]
[311704068,1705342246589,-500.0,0.00030684,2]
[311704069,1705342246599,-500.0,0.00030684,2]
[311704070,1705342246608,-991.46,0.00030684,2]
[311704071,1705342246618,-500.0,0.00030684,2]
[311704072,1705342246627,-500.0,0.00030684,2]
[311704073,1705342246667,-500.0,0.00030684,2]
[311704074,1705342246677,-500.0,0.00030684,2]
[311704075,1705342246686,-1934.91,0.00030684,2]
[311704076,1705342246695,-500.0,0.00030684,2]
[311704077,1705342246704,-500.0,0.00030684,2]
[311704078,1705342246713,-500.0,0.00030684,2]
[311704079,1705342246723,-500.0,0.00030684,2]
[311704080,1705342246735,-500.0,0.00030684,2]
[311704081,1705342246745,-500.0,0.00030684,2]
[311704082,1705342246754,-635.55,0.00030684,2]
[311704083,1705342246764,-997.82887936,0.00030684,2]
[311704084,1705342246850,-170.44112064,0.00030684,2]
[311704085,1705342246859,-500.0,0.00030684,2]
[311704086,1705342246869,-62.10402669,0.00030684,2]
[311704087,1705342247025,-2608.10452205,0.00030126,3]
[311704088,1705342247037,-1974.0,0.00030126,3]
[311704089,1705342247049,-9196.65547795,0.00030126,3]
[311704090,1705342247058,-437.89597331,0.00030684,2]
[311704091,1705342247068,-866.83,0.00030684,2]
[311704092,1705342247078,-500.0,0.00030684,2]
[311704093,1705342247087,-500.0,0.00030684,2]
[311704094,1705342247097,-263.87300385,0.00030684,2]
[311704095,1705342247106,-643.89,0.00030684,2]
[311704096,1705342247116,-500.0,0.00030684,2]
[311704097,1705342247127,-1180.87,0.00030684,2]
[311704098,1705342247137,-504.18316493,0.00030684,2]
[311704099,1705342247146,-500.0,0.00030684,2]
[311704100,1705342247155,-500.0,0.00030684,2]
[311704101,1705342247165,-777.05,0.00030684,2]
[311704102,1705342247174,-500.0,0.00030684,2]
[311704103,1705342247183,-500.0,0.00030684,2]
[311704104,1705342247193,-577.50183177,0.00030684,2]
[311704105,1705342247202,-500.0,0.00030684,2]
[311704106,1705342247212,-500.0,0.00030684,2]
[311704107,1705342247221,-500.0,0.00030684,2]
[311704108,1705342247230,-500.0,0.00030684,2]
[311704109,1705342247240,-662.59,0.00030684,2]
[311704110,1705342247249,-707.49,0.00030684,2]
[311704111,1705342247259,-500.0,0.00030684,2]
[311704112,1705342247268,-500.0,0.00030684,2]
[311704113,1705342247278,-500.0,0.00030684,2]
[311704114,1705342247288,-500.0,0.00030684,2]
[311704115,1705342247297,-500.0,0.00030684,2]
[311704116,1705342247306,-500.0,0.00030684,2]
[311704117,1705342247316,-500.0,0.00030684,2]
[311704118,1705342247325,-500.0,0.00030684,2]
[311704119,1705342247334,-799.82,0.00030684,2]
[311704120,1705342247342,-500.0,0.00030684,2]
[311704121,1705342247353,-666.11,0.00030684,2]
[311704122,1705342247362,-500.0,0.00030684,2]
[311704123,1705342247371,-2386.47,0.00030684,2]
[311704124,1705342247380,-500.0,0.00030684,2]
[311704125,1705342247389,-638.79,0.00030684,2]
[311704126,1705342247398,-1128.27,0.00030684,2]
[311704127,1705342247407,-500.0,0.00030684,2]
[311704128,1705342247416,-643.44,0.00030684,2]
[311704129,1705342247426,-500.0,0.00030684,2]
[311704130,1705342247435,-500.0,0.00030684,2]
[311704131,1705342247444,-2513.68,0.00030684,2]
[311704132,1705342247453,-320.89029073,0.00030684,2]
[311704133,1705342247463,-500.0,0.00030684,2]
[311704134,1705342247472,-500.0,0.00030684,2]
[311704135,1705342247481,-2383.03,0.00030684,2]
[311704136,1705342247491,-500.0,0.00030684,2]
[311704137,1705342247500,-500.0,0.00030684,2]
[311704138,1705342247510,-500.0,0.00030684,2]
[311704139,1705342247519,-500.0,0.00030684,2]
[311704140,1705342247528,-500.0,0.00030684,2]
[311704141,1705342247538,-1277.37,0.00030684,2]
[311704142,1705342247547,-500.0,0.00030684,2]
[311704143,1705342247556,-500.0,0.00030684,2]
[311704144,1705342247565,-500.0,0.00030684,2]
[311704145,1705342247574,-614.3,0.00030684,2]
[311704146,1705342247583,-90.02838602,0.00030684,2]
[311704147,1705342247595,-409.97161398,0.00030684,2]
[311704148,1705342247604,-510.19333132,0.00030684,2]
[311704149,1705342247613,-500.0,0.00030684,2]
[311704150,1705342247622,-10068.54497383,0.00030684,2]
[311704160,1705342359770,353.44187103,0.00022,4]
[311704180,1705343187893,292.87321948,0.00022,4]
[311704197,1705343433576,-155.0,0.00025288,4]
[311704198,1705343433587,-155.0,0.00025289,2]
[311704199,1705343433596,-166.666666,0.0002529,2]
[311704200,1705343433605,-200.0,0.00025544,2]
[311704201,1705343433614,-1902.40720678,0.00025726,2]
[311704234,1705343438526,-11264.57485542,0.00025726,2]
[311704235,1705343438536,-1492.6193174,0.00025778,2]
[311704236,1705343438546,-6515.73664025,0.00026999,2]
[311704237,1705343438555,-2341.8264169,0.00027,2]
[311704238,1705343438564,-10135.33451069,0.000274,2]
[311704239,1705343438573,-500.0,0.00027596,2]
[311704240,1705343438582,-9879.68,0.00027597,3]
[311704241,1705343438592,-7960.86,0.00027597,3]
[311704242,1705343438602,-12687.35,0.00027607,3]
[311704243,1705343438611,-11463.65,0.00027607,3]
[311704244,1705343438620,-9553.04,0.00027607,3]
[311704246,1705343438629,-50000.0,0.00027617,5]
[311704247,1705343438639,-736.97874132,0.000277,2]
[311704249,1705343438648,-500.0,0.00027733,2]
[311704251,1705343438658,-1112.22182837,0.0002775,2]
[311704253,1705343438667,-500.0,0.0002787,2]
[311704255,1705343438676,-500.0,0.00028007,2]
[311704256,1705343438685,-500.0,0.00028144,2]
[311704258,1705343438694,-50000.0,0.00028234,5]
[311704259,1705343438703,-2213.75489782,0.00028556,2]
[311704260,1705343438712,-436.48813636,0.00028888,2]
[311704262,1705343438721,-1150.92292887,0.00029531,2]
[311704263,1705343438731,-310.0,0.00029958,2]
[311704265,1705343438741,-287.63305997,0.0003,3]
[311704267,1705343438750,-9979.0020998,0.0003,2]
[311704269,1705343438759,-155.0,0.0003,4]
[311704270,1705343438768,-297.8809135,0.0003,4]
[311704271,1705343438777,-1413.42859915,0.0003,2]
[311704272,1705343438787,-226.3364049,0.00030134,4]
[311704273,1705343438796,-794.70585194,0.00030134,4]
[311704275,1705343438806,-5579.51870927,0.00030134,4]
[311704277,1705343438815,-238.18235332,0.00030136,3]
[311704279,1705343438824,-500.0,0.00030136,2]
[311704281,1705343438833,-500.0,0.00030136,2]
[311704283,1705343438842,-503.34624185,0.00030136,2]
[311704285,1705343438852,-563.4,0.00030136,2]
[311704287,1705343438862,-1047.57,0.00030136,2]
[311704289,1705343438871,-679.92,0.00030136,2]
[311704291,1705343438880,-502.63221027,0.00030136,2]
[311704293,1705343438890,-500.0,0.00030136,2]
[311704295,1705343438899,-500.0,0.00030136,2]
[311704297,1705343438908,-500.0,0.00030136,2]
[311704299,1705343438917,-500.0,0.00030136,2]
[311704300,1705343438926,-619.06,0.00030136,2]
[311704302,1705343438935,-500.0,0.00030136,2]